[Event "Titled Tuesday Blitz May 4 2021"]
[White "Deepan Chakkravarthy J."]
[Black "Zemach, Roee"]
[WhiteFideId "5011132"]
[BlackFideId "2818531"]
[WhiteElo "2490"]
[BlackElo "2131"]
[Result "0-1"]
[Round "03"]
[TimeControl "180+1"]
[Date "2021.05.04"]
[WhiteClock "0:01:50"]
[BlackClock "0:00:38"]

1. d4 {[%clk 0:03:00]}  Nf6 {[%clk 0:02:59]} 2. Nf3 {[%clk 0:03:01]}  d5 {[%clk 0:02:59]} 3. Nbd2 {[%clk 0:02:58]}  e6 {[%clk 0:02:58]} 4. e3 {[%clk 0:02:58]}  Be7 {[%clk 0:02:57]} 5. Bd3 {[%clk 0:02:57]}  O-O {[%clk 0:02:57]} 6. Ne5 {[%clk 0:02:57]}  c5 {[%clk 0:02:56]} 7. c3 {[%clk 0:02:57]}  b6 {[%clk 0:02:53]} 8. O-O {[%clk 0:02:56]}  Bb7 {[%clk 0:02:53]} 9. f4 {[%clk 0:02:55]}  Nbd7 {[%clk 0:02:48]} 10. Qf3 {[%clk 0:02:54]}  g6 {[%clk 0:02:29]} 11. g4 {[%clk 0:02:50]}  Nxe5 {[%clk 0:02:17]} 12. fxe5 {[%clk 0:02:46]}  Nd7 {[%clk 0:02:14]} 13. Qg2 {[%clk 0:02:43]}  a5 {[%clk 0:01:48]} 14. Nf3 {[%clk 0:02:42]}  Ba6 {[%clk 0:01:47]} 15. Bxa6 {[%clk 0:02:41]}  Rxa6 {[%clk 0:01:48]} 16. g5 {[%clk 0:02:37]}  Re8 {[%clk 0:01:31]} 17. h4 {[%clk 0:02:36]}  Bf8 {[%clk 0:01:30]} 18. h5 {[%clk 0:02:36]}  Bg7 {[%clk 0:01:29]} 19. Bd2 {[%clk 0:02:29]}  b5 {[%clk 0:01:27]} 20. Rf2 {[%clk 0:02:29]}  b4 {[%clk 0:01:23]} 21. Raf1 {[%clk 0:02:28]}  Qe7 {[%clk 0:01:10]} 22. Nh2 {[%clk 0:02:26]}  a4 {[%clk 0:01:07]} 23. e4 {[%clk 0:02:17]}  dxe4 {[%clk 0:00:55]} 24. Qxe4 {[%clk 0:02:16]}  a3 {[%clk 0:00:55]} 25. bxa3 {[%clk 0:02:03]}  bxc3 {[%clk 0:00:54]} 26. Rxf7 {[%clk 0:02:00]}  Qxf7 {[%clk 0:00:49]} 27. Rxf7 {[%clk 0:02:00]}  Kxf7 {[%clk 0:00:46]} 28. Qb7 {[%clk 0:01:59]}  cxd2 {[%clk 0:00:41]} 29. Qxd7+ {[%clk 0:01:50]}  Re7 {[%clk 0:00:38]} 0-1


[Site "https://www.chess.com"]

[Event "Titled Tuesday Blitz May 4 2021"]
[White "Degtiarev, Evgeny"]
[Black "Molchanov, Alexander"]
[WhiteFideId "4149610"]
[BlackFideId "24177687"]
[WhiteElo "2218"]
[BlackElo "2529"]
[Result "0-1"]
[Round "03"]
[TimeControl "180+1"]
[Date "2021.05.04"]
[WhiteClock "0:00:03"]
[BlackClock "0:00:18"]

1. d4 {[%clk 0:03:00]}  Nf6 {[%clk 0:02:59]} 2. c4 {[%clk 0:03:00]}  g6 {[%clk 0:02:59]} 3. Nc3 {[%clk 0:03:00]}  Bg7 {[%clk 0:03:00]} 4. e4 {[%clk 0:03:00]}  d6 {[%clk 0:03:00]} 5. h3 {[%clk 0:03:01]}  O-O {[%clk 0:02:58]} 6. Nf3 {[%clk 0:03:02]}  Na6 {[%clk 0:02:57]} 7. Be3 {[%clk 0:03:01]}  e5 {[%clk 0:02:55]} 8. d5 {[%clk 0:03:00]}  Nc5 {[%clk 0:02:48]} 9. Nd2 {[%clk 0:02:57]}  a5 {[%clk 0:02:45]} 10. a3 {[%clk 0:02:57]}  Nh5 {[%clk 0:02:36]} 11. b4 {[%clk 0:02:55]}  Nd7 {[%clk 0:02:33]} 12. c5 {[%clk 0:02:30]}  axb4 {[%clk 0:02:32]} 13. axb4 {[%clk 0:02:30]}  Rxa1 {[%clk 0:02:33]} 14. Qxa1 {[%clk 0:02:29]}  f5 {[%clk 0:02:33]} 15. cxd6 {[%clk 0:01:33]}  cxd6 {[%clk 0:02:34]} 16. Nb5 {[%clk 0:01:32]}  Ndf6 {[%clk 0:02:23]} 17. Qa5 {[%clk 0:01:20]}  fxe4 {[%clk 0:02:01]} 18. Qxd8 {[%clk 0:01:05]}  Rxd8 {[%clk 0:02:02]} 19. Bb6 {[%clk 0:01:05]}  Rd7 {[%clk 0:01:55]} 20. Na7 {[%clk 0:01:01]}  e3 {[%clk 0:01:31]} 21. fxe3 {[%clk 0:00:59]}  Ng3 {[%clk 0:01:31]} 22. Rg1 {[%clk 0:00:54]}  Nxf1 {[%clk 0:01:17]} 23. Rxf1 {[%clk 0:00:48]}  Nxd5 {[%clk 0:01:17]} 24. Nxc8 {[%clk 0:00:46]}  Nxb4 {[%clk 0:00:54]} 25. Ne4 {[%clk 0:00:25]}  d5 {[%clk 0:00:35]} 26. Nf6+ {[%clk 0:00:22]}  Bxf6 {[%clk 0:00:34]} 27. Rxf6 {[%clk 0:00:23]}  d4 {[%clk 0:00:31]} 28. exd4 {[%clk 0:00:22]}  exd4 {[%clk 0:00:32]} 29. Rd6 {[%clk 0:00:20]}  Rf7 {[%clk 0:00:27]} 30. Bxd4 {[%clk 0:00:17]}  Rc7 {[%clk 0:00:24]} 31. Ne7+ {[%clk 0:00:08]}  Rxe7+ {[%clk 0:00:21]} 32. Kd2 {[%clk 0:00:04]}  Nc6 {[%clk 0:00:19]} 33. Bc3 {[%clk 0:00:04]}  Kf7 {[%clk 0:00:18]} 34. Rf6+ {[%clk 0:00:04]}  Ke8 {[%clk 0:00:18]} 35. Rd6 {[%clk 0:00:04]}  Rd7 {[%clk 0:00:18]} 36. Rxd7 {[%clk 0:00:04]}  Kxd7 {[%clk 0:00:19]} 37. g4 {[%clk 0:00:04]}  b5 {[%clk 0:00:19]} 38. h4 {[%clk 0:00:05]}  Ke6 {[%clk 0:00:19]} 39. h5 {[%clk 0:00:05]}  Kd5 {[%clk 0:00:19]} 40. hxg6 {[%clk 0:00:04]}  hxg6 {[%clk 0:00:20]} 41. Ke3 {[%clk 0:00:04]}  b4 {[%clk 0:00:20]} 42. Bb2 {[%clk 0:00:04]}  Ke6 {[%clk 0:00:18]} 43. Kf4 {[%clk 0:00:04]}  Na5 {[%clk 0:00:16]} 44. Kg5 {[%clk 0:00:04]}  Kf7 {[%clk 0:00:16]} 45. Kf4 {[%clk 0:00:04]}  Nc4 {[%clk 0:00:17]} 46. Bd4 {[%clk 0:00:03]}  b3 {[%clk 0:00:17]} 47. Kg5 {[%clk 0:00:03]}  b2 {[%clk 0:00:17]} 48. Bxb2 {[%clk 0:00:03]}  Nxb2 {[%clk 0:00:18]} 49. Kf4 {[%clk 0:00:03]}  Nc4 {[%clk 0:00:18]} 0-1


[Site "https://www.chess.com"]

[Event "Titled Tuesday Blitz May 4 2021"]
[White "Dejmek, Mark"]
[Black "Kiselev, Gennady"]
[WhiteFideId "2017628"]
[BlackFideId "4117107"]
[WhiteElo "2197"]
[BlackElo "2323"]
[Result "0-1"]
[Round "03"]
[TimeControl "180+1"]
[Date "2021.05.04"]
[WhiteClock "0:00:09"]
[BlackClock "0:01:50"]

1. e4 {[%clk 0:03:00]}  c5 {[%clk 0:02:56]} 2. Nf3 {[%clk 0:03:00]}  d6 {[%clk 0:02:51]} 3. d4 {[%clk 0:02:59]}  cxd4 {[%clk 0:02:51]} 4. Nxd4 {[%clk 0:03:00]}  Nf6 {[%clk 0:02:51]} 5. Nc3 {[%clk 0:03:01]}  Nc6 {[%clk 0:02:50]} 6. Bc4 {[%clk 0:03:00]}  e6 {[%clk 0:02:49]} 7. Be3 {[%clk 0:02:59]}  a6 {[%clk 0:02:47]} 8. Qe2 {[%clk 0:02:58]}  Be7 {[%clk 0:02:45]} 9. O-O-O {[%clk 0:02:57]}  Qc7 {[%clk 0:02:44]} 10. Bb3 {[%clk 0:02:57]}  O-O {[%clk 0:02:41]} 11. g4 {[%clk 0:02:55]}  Nd7 {[%clk 0:02:39]} 12. Nf5 {[%clk 0:02:52]}  Nc5 {[%clk 0:02:33]} 13. Bd5 {[%clk 0:02:05]}  exf5 {[%clk 0:02:27]} 14. gxf5 {[%clk 0:02:05]}  Bf6 {[%clk 0:02:25]} 15. Bxc6 {[%clk 0:01:17]}  bxc6 {[%clk 0:02:21]} 16. Bxc5 {[%clk 0:01:13]}  dxc5 {[%clk 0:02:18]} 17. Rhg1 {[%clk 0:01:04]}  Rb8 {[%clk 0:02:14]} 18. Qc4 {[%clk 0:00:53]}  Qf4+ {[%clk 0:02:04]} 19. Kb1 {[%clk 0:00:42]}  Bxf5 {[%clk 0:02:00]} 20. Qxc5 {[%clk 0:00:23]}  Bxe4 {[%clk 0:01:53]} 21. Rd4 {[%clk 0:00:09]}  Bxd4 {[%clk 0:01:50]} 0-1


[Site "https://www.chess.com"]

[Event "Titled Tuesday Blitz May 4 2021"]
[White "Demidov, Mikhail"]
[Black "Darini, Pouria"]
[WhiteFideId "4197143"]
[BlackFideId "12502200"]
[WhiteElo "2583"]
[BlackElo "2489"]
[Result "1/2-1/2"]
[Round "03"]
[TimeControl "180+1"]
[Date "2021.05.04"]
[WhiteClock "0:01:47"]
[BlackClock "0:00:21"]

1. Nf3 {[%clk 0:03:00]}  Nf6 {[%clk 0:02:59]} 2. e3 {[%clk 0:02:58]}  g6 {[%clk 0:02:59]} 3. b4 {[%clk 0:02:58]}  Bg7 {[%clk 0:02:59]} 4. Bb2 {[%clk 0:02:58]}  O-O {[%clk 0:02:59]} 5. d4 {[%clk 0:02:59]}  d5 {[%clk 0:02:53]} 6. Nbd2 {[%clk 0:02:59]}  c6 {[%clk 0:02:48]} 7. c4 {[%clk 0:02:58]}  a5 {[%clk 0:02:47]} 8. b5 {[%clk 0:02:58]}  a4 {[%clk 0:02:45]} 9. a3 {[%clk 0:02:58]}  Ne4 {[%clk 0:02:43]} 10. Bd3 {[%clk 0:02:53]}  Bf5 {[%clk 0:02:42]} 11. Bxe4 {[%clk 0:02:46]}  dxe4 {[%clk 0:02:28]} 12. Ng5 {[%clk 0:02:45]}  e5 {[%clk 0:02:14]} 13. Ndxe4 {[%clk 0:02:27]}  h6 {[%clk 0:01:41]} 14. g4 {[%clk 0:02:27]}  Bc8 {[%clk 0:01:30]} 15. Nf3 {[%clk 0:02:18]}  Bxg4 {[%clk 0:01:25]} 16. Rg1 {[%clk 0:02:18]}  Bh5 {[%clk 0:01:16]} 17. Ng3 {[%clk 0:02:17]}  Bxf3 {[%clk 0:01:12]} 18. Qxf3 {[%clk 0:02:17]}  exd4 {[%clk 0:01:13]} 19. O-O-O {[%clk 0:02:15]}  cxb5 {[%clk 0:00:56]} 20. Bxd4 {[%clk 0:02:03]}  Qc7 {[%clk 0:00:45]} 21. Bxg7 {[%clk 0:01:57]}  Qxc4+ {[%clk 0:00:46]} 22. Kb1 {[%clk 0:01:55]}  Kxg7 {[%clk 0:00:46]} 23. Nh5+ {[%clk 0:01:50]}  Kh7 {[%clk 0:00:40]} 24. Qf6 {[%clk 0:01:48]}  Qb3+ {[%clk 0:00:33]} 25. Ka1 {[%clk 0:01:46]}  Qxa3+ {[%clk 0:00:32]} 26. Kb1 {[%clk 0:01:46]}  Qb4+ {[%clk 0:00:31]} 27. Ka1 {[%clk 0:01:46]}  Qa3+ {[%clk 0:00:29]} 28. Kb1 {[%clk 0:01:47]}  Qb3+ {[%clk 0:00:30]} 29. Ka1 {[%clk 0:01:47]}  Qa3+ {[%clk 0:00:21]} 1/2-1/2


[Site "https://www.chess.com"]

[Event "Titled Tuesday Blitz May 4 2021"]
[White "Dimic, Pavle"]
[Black "Lizlov, Alexey"]
[WhiteFideId "937428"]
[BlackFideId "4179803"]
[WhiteElo "2216"]
[BlackElo "2272"]
[Result "1-0"]
[Round "03"]
[TimeControl "180+1"]
[Date "2021.05.04"]
[WhiteClock "0:00:57"]
[BlackClock "0:00:02"]

1. d4 {[%clk 0:03:00]}  Nf6 {[%clk 0:02:59]} 2. c4 {[%clk 0:03:01]}  g6 {[%clk 0:02:59]} 3. Nf3 {[%clk 0:03:00]}  Bg7 {[%clk 0:02:59]} 4. g3 {[%clk 0:03:01]}  O-O {[%clk 0:02:59]} 5. Bg2 {[%clk 0:03:01]}  d6 {[%clk 0:03:00]} 6. O-O {[%clk 0:03:01]}  Nbd7 {[%clk 0:03:00]} 7. Nc3 {[%clk 0:03:02]}  e5 {[%clk 0:02:57]} 8. e4 {[%clk 0:03:03]}  Re8 {[%clk 0:02:55]} 9. h3 {[%clk 0:03:02]}  exd4 {[%clk 0:02:52]} 10. Nxd4 {[%clk 0:03:01]}  Nc5 {[%clk 0:02:53]} 11. Re1 {[%clk 0:03:01]}  a5 {[%clk 0:02:49]} 12. Rb1 {[%clk 0:03:00]}  a4 {[%clk 0:02:44]} 13. b4 {[%clk 0:02:59]}  axb3 {[%clk 0:02:42]} 14. axb3 {[%clk 0:02:59]}  c6 {[%clk 0:02:40]} 15. Bf4 {[%clk 0:02:58]}  h6 {[%clk 0:01:47]} 16. Qc2 {[%clk 0:02:48]}  Qb6 {[%clk 0:01:39]} 17. b4 {[%clk 0:02:46]}  Ncxe4 {[%clk 0:01:38]} 18. Nxe4 {[%clk 0:02:35]}  Nxe4 {[%clk 0:01:32]} 19. c5 {[%clk 0:02:22]}  dxc5 {[%clk 0:00:55]} 20. bxc5 {[%clk 0:01:45]}  Qd8 {[%clk 0:00:55]} 21. Nxc6 {[%clk 0:01:45]}  bxc6 {[%clk 0:00:50]} 22. Bxe4 {[%clk 0:01:46]}  Rxe4 {[%clk 0:00:37]} 23. Qxe4 {[%clk 0:01:37]}  Bf5 {[%clk 0:00:36]} 24. Qxc6 {[%clk 0:01:37]}  Bxb1 {[%clk 0:00:33]} 25. Rxb1 {[%clk 0:01:38]}  Rc8 {[%clk 0:00:22]} 26. Qd6 {[%clk 0:01:32]}  Qf6 {[%clk 0:00:15]} 27. Qxf6 {[%clk 0:01:07]}  Bxf6 {[%clk 0:00:15]} 28. Bd6 {[%clk 0:00:59]}  Bd4 {[%clk 0:00:12]} 29. Rc1 {[%clk 0:00:59]}  Kg7 {[%clk 0:00:10]} 30. Rc4 {[%clk 0:00:58]}  Bf6 {[%clk 0:00:08]} 31. c6 {[%clk 0:00:58]}  g5 {[%clk 0:00:05]} 32. c7 {[%clk 0:00:58]}  Kg6 {[%clk 0:00:02]} 33. Rb4 {[%clk 0:00:57]} 1-0


[Site "https://www.chess.com"]

[Event "Titled Tuesday Blitz May 4 2021"]
[White "Dushyant Sharma"]
[Black "Sapunov, Evgeny"]
[WhiteFideId "25065130"]
[BlackFideId "4126661"]
[WhiteElo "2019"]
[BlackElo "2470"]
[Result "0-1"]
[Round "03"]
[TimeControl "180+1"]
[Date "2021.05.04"]
[WhiteClock "0:01:20"]
[BlackClock "0:01:44"]

1. e4 {[%clk 0:03:00]}  c5 {[%clk 0:02:59]} 2. Nf3 {[%clk 0:03:00]}  d6 {[%clk 0:02:58]} 3. d4 {[%clk 0:03:01]}  cxd4 {[%clk 0:02:59]} 4. Nxd4 {[%clk 0:03:01]}  Nf6 {[%clk 0:02:59]} 5. Nc3 {[%clk 0:03:02]}  Nc6 {[%clk 0:03:00]} 6. f4 {[%clk 0:03:02]}  g6 {[%clk 0:02:57]} 7. Nf3 {[%clk 0:03:03]}  Bg7 {[%clk 0:02:56]} 8. Bd3 {[%clk 0:03:03]}  O-O {[%clk 0:02:56]} 9. O-O {[%clk 0:03:04]}  a6 {[%clk 0:02:57]} 10. Kh1 {[%clk 0:03:04]}  b5 {[%clk 0:02:57]} 11. a3 {[%clk 0:03:04]}  Bb7 {[%clk 0:02:57]} 12. Qe1 {[%clk 0:03:04]}  Rc8 {[%clk 0:02:57]} 13. Bd2 {[%clk 0:03:04]}  e6 {[%clk 0:02:56]} 14. Qh4 {[%clk 0:03:03]}  Nh5 {[%clk 0:02:55]} 15. Qh3 {[%clk 0:03:03]}  f5 {[%clk 0:02:49]} 16. Rae1 {[%clk 0:03:00]}  Qd7 {[%clk 0:02:45]} 17. exf5 {[%clk 0:02:58]}  exf5 {[%clk 0:02:45]} 18. Nd5 {[%clk 0:02:48]}  Rce8 {[%clk 0:02:43]} 19. Bc3 {[%clk 0:02:36]}  Bxc3 {[%clk 0:02:26]} 20. Nxc3 {[%clk 0:02:35]}  Nxf4 {[%clk 0:02:23]} 21. Qh4 {[%clk 0:02:30]}  Nxd3 {[%clk 0:02:22]} 22. cxd3 {[%clk 0:02:31]}  Ne5 {[%clk 0:02:21]} 23. Nxe5 {[%clk 0:02:26]}  dxe5 {[%clk 0:02:21]} 24. Re3 {[%clk 0:02:16]}  Rf7 {[%clk 0:02:17]} 25. Rfe1 {[%clk 0:02:02]}  Qd6 {[%clk 0:02:10]} 26. a4 {[%clk 0:01:54]}  b4 {[%clk 0:02:08]} 27. Nd1 {[%clk 0:01:40]}  f4 {[%clk 0:02:07]} 28. R3e2 {[%clk 0:01:37]}  f3 {[%clk 0:02:07]} 29. Re4 {[%clk 0:01:31]}  fxg2+ {[%clk 0:02:05]} 30. Kxg2 {[%clk 0:01:30]}  Qxd3 {[%clk 0:02:05]} 31. Nf2 {[%clk 0:01:28]}  Qf3+ {[%clk 0:02:04]} 32. Kg1 {[%clk 0:01:28]}  Bxe4 {[%clk 0:01:59]} 33. Rxe4 {[%clk 0:01:28]}  Rf4 {[%clk 0:01:54]} 34. Rxf4 {[%clk 0:01:25]}  exf4 {[%clk 0:01:54]} 35. Ng4 {[%clk 0:01:23]}  Qd1+ {[%clk 0:01:51]} 36. Kg2 {[%clk 0:01:21]}  Re2+ {[%clk 0:01:45]} 37. Nf2 {[%clk 0:01:21]}  Qd5+ {[%clk 0:01:44]} 38. Kg1 {[%clk 0:01:20]} 0-1


[Site "https://www.chess.com"]

[Event "Titled Tuesday Blitz May 4 2021"]
[White "Espinosa Veloz, Ermes"]
[Black "Todorovic, Bojan"]
[WhiteFideId "3507424"]
[BlackFideId "917087"]
[WhiteElo "2333"]
[BlackElo "2266"]
[Result "1-0"]
[Round "03"]
[TimeControl "180+1"]
[Date "2021.05.04"]
[WhiteClock "0:00:05"]
[BlackClock "0:00:01"]

1. e4 {[%clk 0:03:00]}  e5 {[%clk 0:02:58]} 2. Nf3 {[%clk 0:03:00]}  Nc6 {[%clk 0:02:57]} 3. Bc4 {[%clk 0:03:00]}  Nf6 {[%clk 0:02:54]} 4. Ng5 {[%clk 0:02:59]}  d5 {[%clk 0:02:52]} 5. exd5 {[%clk 0:02:59]}  b5 {[%clk 0:02:52]} 6. Bxb5 {[%clk 0:02:42]}  Qxd5 {[%clk 0:02:50]} 7. Bxc6+ {[%clk 0:02:04]}  Qxc6 {[%clk 0:02:49]} 8. O-O {[%clk 0:02:05]}  h6 {[%clk 0:02:39]} 9. Nf3 {[%clk 0:02:04]}  e4 {[%clk 0:02:24]} 10. Ne5 {[%clk 0:02:01]}  Qd5 {[%clk 0:02:17]} 11. d4 {[%clk 0:01:59]}  c5 {[%clk 0:02:08]} 12. Be3 {[%clk 0:01:48]}  Bd6 {[%clk 0:01:28]} 13. Nc3 {[%clk 0:01:35]}  Qe6 {[%clk 0:01:28]} 14. f4 {[%clk 0:01:34]}  exf3 {[%clk 0:01:22]} 15. Qxf3 {[%clk 0:01:33]}  Rb8 {[%clk 0:01:06]} 16. Nc6 {[%clk 0:01:31]}  Rxb2 {[%clk 0:00:46]} 17. dxc5 {[%clk 0:01:23]}  Bc7 {[%clk 0:00:40]} 18. Rae1 {[%clk 0:01:19]}  O-O {[%clk 0:00:39]} 19. Bd4 {[%clk 0:01:12]}  Qg4 {[%clk 0:00:28]} 20. Bxf6 {[%clk 0:00:57]}  Qxf3 {[%clk 0:00:27]} 21. Rxf3 {[%clk 0:00:56]}  gxf6 {[%clk 0:00:27]} 22. Nd5 {[%clk 0:00:56]}  Be5 {[%clk 0:00:14]} 23. Nxe5 {[%clk 0:00:52]}  fxe5 {[%clk 0:00:14]} 24. Rxe5 {[%clk 0:00:51]}  Rxc2 {[%clk 0:00:14]} 25. c6 {[%clk 0:00:49]}  Be6 {[%clk 0:00:12]} 26. Rc3 {[%clk 0:00:37]}  Rxc3 {[%clk 0:00:10]} 27. Nxc3 {[%clk 0:00:38]}  Rc8 {[%clk 0:00:10]} 28. Rc5 {[%clk 0:00:38]}  Kf8 {[%clk 0:00:11]} 29. Kf2 {[%clk 0:00:36]}  Ke7 {[%clk 0:00:11]} 30. Ke3 {[%clk 0:00:35]}  Kd6 {[%clk 0:00:10]} 31. Ne4+ {[%clk 0:00:36]}  Kc7 {[%clk 0:00:08]} 32. a3 {[%clk 0:00:34]}  Rb8 {[%clk 0:00:08]} 33. Rh5 {[%clk 0:00:25]}  Rb3+ {[%clk 0:00:07]} 34. Kf4 {[%clk 0:00:25]}  Rxa3 {[%clk 0:00:06]} 35. Rxh6 {[%clk 0:00:24]}  Kxc6 {[%clk 0:00:06]} 36. h4 {[%clk 0:00:24]}  a5 {[%clk 0:00:05]} 37. h5 {[%clk 0:00:24]}  a4 {[%clk 0:00:05]} 38. Rh8 {[%clk 0:00:24]}  Ra1 {[%clk 0:00:04]} 39. h6 {[%clk 0:00:22]}  a3 {[%clk 0:00:05]} 40. h7 {[%clk 0:00:17]}  a2 {[%clk 0:00:01]} 41. Ra8 {[%clk 0:00:08]}  Rh1 {[%clk 0:00:01]} 42. Ng5 {[%clk 0:00:06]}  Rh4+ {[%clk 0:00:01]} 43. Kg3 {[%clk 0:00:05]}  Rg4+ {[%clk 0:00:01]} 44. Kf3 {[%clk 0:00:05]} 1-0


[Site "https://www.chess.com"]

[Event "Titled Tuesday Blitz May 4 2021"]
[White "Eynullayev, Atilla"]
[Black "Maiorov, Nikita"]
[WhiteFideId "13413570"]
[BlackFideId "13501720"]
[WhiteElo "1997"]
[BlackElo "2440"]
[Result "0-1"]
[Round "03"]
[TimeControl "180+1"]
[Date "2021.05.04"]
[WhiteClock "0:00:05"]
[BlackClock "0:01:57"]

1. e4 {[%clk 0:03:00]}  e5 {[%clk 0:02:59]} 2. Nf3 {[%clk 0:03:00]}  Nc6 {[%clk 0:02:58]} 3. Bb5 {[%clk 0:03:00]}  a6 {[%clk 0:02:58]} 4. Ba4 {[%clk 0:03:00]}  Nf6 {[%clk 0:02:57]} 5. O-O {[%clk 0:03:00]}  Be7 {[%clk 0:02:57]} 6. Re1 {[%clk 0:02:59]}  b5 {[%clk 0:02:56]} 7. Bb3 {[%clk 0:02:59]}  d6 {[%clk 0:02:56]} 8. c3 {[%clk 0:02:56]}  O-O {[%clk 0:02:55]} 9. h3 {[%clk 0:02:56]}  Na5 {[%clk 0:02:55]} 10. Bc2 {[%clk 0:02:55]}  c5 {[%clk 0:02:54]} 11. d4 {[%clk 0:02:56]}  Nd7 {[%clk 0:02:54]} 12. Nbd2 {[%clk 0:02:32]}  exd4 {[%clk 0:02:53]} 13. cxd4 {[%clk 0:02:32]}  Nc6 {[%clk 0:02:53]} 14. Nf1 {[%clk 0:02:25]}  Nxd4 {[%clk 0:02:50]} 15. Nxd4 {[%clk 0:02:24]}  cxd4 {[%clk 0:02:50]} 16. Qxd4 {[%clk 0:02:25]}  Ne5 {[%clk 0:02:50]} 17. Ne3 {[%clk 0:02:16]}  Bf6 {[%clk 0:02:48]} 18. Qd1 {[%clk 0:02:13]}  Be6 {[%clk 0:02:47]} 19. Nd5 {[%clk 0:01:59]}  Bxd5 {[%clk 0:02:46]} 20. Qxd5 {[%clk 0:01:56]}  Rc8 {[%clk 0:02:45]} 21. Re2 {[%clk 0:01:38]}  Nc4 {[%clk 0:02:44]} 22. Rb1 {[%clk 0:01:32]}  Rc5 {[%clk 0:02:44]} 23. Qd1 {[%clk 0:01:17]}  Re8 {[%clk 0:02:42]} 24. b3 {[%clk 0:01:16]}  Ne5 {[%clk 0:02:37]} 25. Be3 {[%clk 0:01:14]}  Rc8 {[%clk 0:02:37]} 26. Rd2 {[%clk 0:01:09]}  Qe7 {[%clk 0:02:35]} 27. Rc1 {[%clk 0:01:04]}  Red8 {[%clk 0:02:34]} 28. Bb1 {[%clk 0:01:03]}  Rxc1 {[%clk 0:02:29]} 29. Qxc1 {[%clk 0:01:03]}  h6 {[%clk 0:02:29]} 30. Bb6 {[%clk 0:00:42]}  Re8 {[%clk 0:02:25]} 31. a4 {[%clk 0:00:34]}  bxa4 {[%clk 0:02:14]} 32. bxa4 {[%clk 0:00:34]}  Qb7 {[%clk 0:02:11]} 33. a5 {[%clk 0:00:22]}  Bg5 {[%clk 0:02:09]} 34. Be3 {[%clk 0:00:15]}  Bxe3 {[%clk 0:02:09]} 35. fxe3 {[%clk 0:00:15]}  Qb4 {[%clk 0:02:07]} 36. Ra2 {[%clk 0:00:10]}  Rb8 {[%clk 0:02:04]} 37. Bc2 {[%clk 0:00:09]}  Rc8 {[%clk 0:02:04]} 38. Qd1 {[%clk 0:00:08]}  Qc5 {[%clk 0:02:01]} 39. Qd2 {[%clk 0:00:06]}  Nc4 {[%clk 0:02:00]} 40. Qd4 {[%clk 0:00:06]}  Nxe3 {[%clk 0:01:59]} 41. Qxc5 {[%clk 0:00:06]}  dxc5 {[%clk 0:01:57]} 42. Bd3 {[%clk 0:00:06]}  c4 {[%clk 0:01:57]} 43. Be2 {[%clk 0:00:06]}  c3 {[%clk 0:01:57]} 44. Bxa6 {[%clk 0:00:05]}  c2 {[%clk 0:01:57]} 0-1


[Site "https://www.chess.com"]

[Event "Titled Tuesday Blitz May 4 2021"]
[White "Ferguson, Randal"]
[Black "Terletsky, Oleg"]
[WhiteFideId "30903106"]
[BlackFideId "14116774"]
[WhiteElo "2134"]
[BlackElo "2094"]
[Result "0-1"]
[Round "03"]
[TimeControl "180+1"]
[Date "2021.05.04"]
[WhiteClock "0:00:04"]
[BlackClock "0:00:10"]

1. e4 {[%clk 0:03:00]}  e5 {[%clk 0:02:59]} 2. Nf3 {[%clk 0:03:00]}  Nc6 {[%clk 0:02:59]} 3. Bb5 {[%clk 0:03:01]}  a6 {[%clk 0:02:59]} 4. Bxc6 {[%clk 0:03:01]}  dxc6 {[%clk 0:03:00]} 5. O-O {[%clk 0:03:01]}  f6 {[%clk 0:03:00]} 6. d4 {[%clk 0:03:01]}  exd4 {[%clk 0:03:01]} 7. Nxd4 {[%clk 0:03:01]}  c5 {[%clk 0:03:01]} 8. Nb3 {[%clk 0:03:02]}  Qxd1 {[%clk 0:03:02]} 9. Rxd1 {[%clk 0:03:02]}  Bd7 {[%clk 0:03:00]} 10. Nc3 {[%clk 0:02:49]}  O-O-O {[%clk 0:03:00]} 11. Be3 {[%clk 0:02:44]}  b6 {[%clk 0:02:59]} 12. a4 {[%clk 0:02:45]}  a5 {[%clk 0:02:56]} 13. Nb5 {[%clk 0:02:40]}  Bxb5 {[%clk 0:02:52]} 14. axb5 {[%clk 0:02:31]}  Ne7 {[%clk 0:02:44]} 15. Nd2 {[%clk 0:02:26]}  f5 {[%clk 0:02:31]} 16. Bg5 {[%clk 0:02:10]}  fxe4 {[%clk 0:02:22]} 17. Nxe4 {[%clk 0:02:08]}  Re8 {[%clk 0:02:14]} 18. f3 {[%clk 0:01:37]}  Nf5 {[%clk 0:02:11]} 19. c3 {[%clk 0:01:34]}  Be7 {[%clk 0:01:55]} 20. Bf4 {[%clk 0:01:27]}  Rd8 {[%clk 0:01:51]} 21. Ng5 {[%clk 0:01:20]}  Rxd1+ {[%clk 0:01:44]} 22. Rxd1 {[%clk 0:01:21]}  Bxg5 {[%clk 0:01:44]} 23. Bxg5 {[%clk 0:01:20]}  Nd6 {[%clk 0:01:44]} 24. b4 {[%clk 0:01:01]}  axb4 {[%clk 0:01:21]} 25. cxb4 {[%clk 0:01:00]}  c4 {[%clk 0:01:20]} 26. Rd4 {[%clk 0:00:44]}  c3 {[%clk 0:01:05]} 27. Bf4 {[%clk 0:00:30]}  Nxb5 {[%clk 0:01:03]} 28. Rc4 {[%clk 0:00:30]}  Re8 {[%clk 0:00:41]} 29. Kf2 {[%clk 0:00:30]}  Kb7 {[%clk 0:00:41]} 30. h4 {[%clk 0:00:29]}  c6 {[%clk 0:00:39]} 31. g4 {[%clk 0:00:28]}  Ra8 {[%clk 0:00:27]} 32. h5 {[%clk 0:00:21]}  Ra2+ {[%clk 0:00:26]} 33. Kg3 {[%clk 0:00:22]}  c2 {[%clk 0:00:22]} 34. g5 {[%clk 0:00:21]}  Na3 {[%clk 0:00:21]} 35. Re4 {[%clk 0:00:17]}  Ra1 {[%clk 0:00:16]} 36. Re7+ {[%clk 0:00:16]}  Ka6 {[%clk 0:00:17]} 37. Rxg7 {[%clk 0:00:16]}  Nc4 {[%clk 0:00:14]} 38. g6 {[%clk 0:00:13]}  hxg6 {[%clk 0:00:13]} 39. h6 {[%clk 0:00:12]}  Rh1 {[%clk 0:00:12]} 40. h7 {[%clk 0:00:11]}  Kb5 {[%clk 0:00:12]} 41. Kg2 {[%clk 0:00:06]}  Rh5 {[%clk 0:00:11]} 42. Kg3 {[%clk 0:00:06]}  Ne5 {[%clk 0:00:11]} 43. Bxe5 {[%clk 0:00:04]}  c1=Q {[%clk 0:00:10]} 0-1


[Site "https://www.chess.com"]